Cogmind - Beta 16 @@@ ROGUE MODE // 2025.10.24 @ 23:10:07 Player: Pogmind Result: Destroyed self with Subdweller Shrapnel Launcher Performance ------------- Evolutions (0) 0 Regions Visited (2) 400 Robots Destroyed (45) 225 Value Destroyed (1050) 1050 Prototype IDs (0) 0 Alien Tech Used (0) 0 Bonus (0) 0 TOTAL SCORE: 1675 Bonus ------- None Cogmind --------- Core Integrity 0/250 Matter 10/300 Energy 250/250 System Corruption 0% Temperature Cool (0) Movement Treading (480) Ox4 Location -10/Subcaves Parts ------- > --- POWER (1) -------- Ion Engine > --- PROPULSION (2) --- Light Treads > --- UTILITY (2) ------ Huge Storage Unit > --- WEAPON (2) ------- Rocket Launcher Subdweller Shrapnel Launcher > --- INVENTORY (25) --- Light Treads Light Treads Subdweller Monowheel Humpback Medium Matter Pod (100) Medium Matter Pod (100) Medium Matter Pod (0) Large Matter Pod (150) High-capacity Matter Pod (200) Structural Scanner Seismic Detector Light Armor Plating Light Armor Plating Light Armor Plating Light Armor Plating Light Armor Plating Light Armor Plating Particle Gun Assault Rifle Subdweller Machine Gun Light Cannon Rocket Launcher Rocket Launcher Flamer Peak State ------------ > --- POWER ------------ Ion Engine > --- PROPULSION ------- Light Treads Light Treads > --- UTILITY ---------- Huge Storage Unit Seismic Detector > --- WEAPON ----------- Heavy EM Pulse Gun Heavy EM Pulse Gun > --- INVENTORY -------- Aluminum Leg Aluminum Leg Aluminum Leg Aluminum Leg Heat Sink Improved Heat Sink High-capacity Matter Pod Structural Scanner Light Armor Plating Light Armor Plating Light Armor Plating Light Armor Plating Light Armor Plating Light Armor Plating Light Armor Plating Heavy EM Pulse Gun Heavy EM Pulse Gun Particle Gun Particle Gun Assault Rifle Light Cannon Rocket Launcher Mining Claw [Rating: 12] Favorites ----------- Power Ion Engine Engine Ion Engine Propulsion Light Treads Treads Light Treads Leg Aluminum Leg Wheel Compact Wheel Utility Seismic Detector Device Seismic Detector Storage Huge Storage Unit Protection Light Armor Plating Weapon Heavy EM Pulse Gun Energy Gun Heavy EM Pulse Gun Ballistic Gun Assault Rifle Ballistic Cannon Light Cannon Launcher Rocket Launcher Slashing Weapon Mining Claw Build | -11 -10 -10 ------- Run | Yrd Mat Sub Slots Evolved . | . . . Power . | . . . Propulsion . | . . . Utility . | . . . Weapon . | . . . Parts Attached 31 | 7 18 6 Power 2 | 1 1 . Engine 2 | 1 1 . Core . | . . . Reactor . | . . . Propulsion 8 | 2 6 . Treads 4 | 2 2 . Leg 3 | . 3 . Wheel 1 | . 1 . Hover . | . . . Flight . | . . . Utility 6 | 2 3 1 Device 2 | 1 1 . Storage 3 | 1 2 . Processor . | . . . Hackware . | . . . Protection 1 | . . 1 Artifact . | . . . Weapon 15 | 2 8 5 Energy Gun 7 | 2 4 1 Energy Cannon . | . . . Ballistic Gun 3 | . 2 1 Ballistic Cannon 1 | . . 1 Launcher 3 | . 1 2 Special Weapon . | . . . Impact Weapon . | . . . Slashing Weapon 1 | . 1 . Piercing Weapon . | . . . Special Melee Weapon . | . . . Unidentified Prototypes . | . . . Parts Lost 4 | . 2 2 Power . | . . . Propulsion 2 | . 1 1 Utility 1 | . . 1 Weapon 1 | . 1 . Highest Loss Streak 2 | . 1 2 To Critical Strikes . | . . . Average Backups 18 | 2 18 24 Power . | . . . Propulsion 3 | 1 3 2 Utility 8 | . 7 13 Weapon 7 | 1 7 8 Tool/Special . | . . . Unused Backups 25 | . 5 20 Power . | . . . Propulsion 5 | . 3 2 Utility 15 | . 1 14 Weapon 5 | . 1 4 Tool/Special . | . . . Average Slot Usage (%) 99 | . 99 100 Engine 14 | . 14 14 Treads 20 | . 18 28 Leg 7 | . 9 . Device 13 | . 13 12 Storage 14 | . 14 14 Energy Gun 15 | . 19 3 Ballistic Gun 7 | . 8 5 Ballistic Cannon 1 | . . 6 Launcher 2 | . . 12 Peak Build Rating 12 | 7 12 12 Average Rating 10 | 5 10 11 On Entrance 6 | . 7 11 Avg Prop Armor Cover (%) 12 | . 12 . Naked Turns . | . . . Heaviest Build 95 | 13 92 95 Greatest Support 40 | 40 40 40 Greatest Overweight (x) 2 | . 2 2 Average Overweight (x) 1 | . 1 2 Largest Inventory Capacity 25 | 8 25 25 Average Capacity 20 | 7 19 25 Most Carried 25 | 4 25 25 Average Carried 19 | 2 18 24 Final Capacity 25 | 8 25 25 Final Carried 25 | 4 25 25 Class Distribution -------------------- 87% | Scavenger-Mutant 12% | Mutant Dominant Class ---------------- Scavenger-Mutant | -10/Materials Scavenger-Mutant | -10/Subcaves Resources | -11 -10 -10 ----------- Run | Yrd Mat Sub Matter Collected 1567 | 270 1048 249 Remotely . | . . . Salvage Created 1303 | 115 1110 78 Parts 94 | 11 74 9 Haulers Intercepted 2 | . 2 . Recyclers Shooed . | . . . Parts Field Recycled . | . . . Retrieved Matter . | . . . Parts Self-Destructed 4 | . . 4 Prevented . | . . . Parts Restored . | . . . Kills | -11 -10 -10 ------- Run | Yrd Mat Sub Combat Hostiles Destroyed 29 | . 21 8 Guns 19 | . 18 1 AOE 10 | . 3 7 Classes Destroyed 9 | 2 6 1 Worker 4 | . 4 . Tunneler 3 | 2 1 . Hauler 2 | . 2 . Recycler 3 | 1 2 . Operator 1 | . 1 . Watcher 3 | . 3 . Swarmer 6 | . 6 . Grunt 15 | . 15 . Subdweller 8 | . . 8 Best Kill Streak 7 | 2 7 3 Combat Bots Only 5 | . 5 3 Max Kills in Single Turn 3 | 1 3 2 Gunslinging . | . . . Exploded 3 | . 3 2 Melee . | . . . Uniques/NPCs Destroyed . | . . . Combat | -11 -10 -10 -------- Run | Yrd Mat Sub Hostile Shots Fired 90 | . 67 23 Missed 21 | . 15 6 Hits 69 | . 52 17 Projectile 69 | . 52 17 Critical Strikes 2 | . 1 1 Damage Taken 1215 | . 649 566 Core 274 | . 133 141 Absorbed by Shields . | . . . Regen/Repaired (Parts) 86 | . 86 . Core Remaining (%) 100 | 100 . . Volleys Fired 125 | 7 91 27 Largest 2 | 2 2 2 Hottest 105 | 80 105 95 Shots Fired 217 | 14 158 45 Gun 177 | 14 157 6 Cannon 15 | . . 15 Launcher 25 | . 1 24 Special . | . . . Kinetic 82 | . 62 20 Thermal 98 | 14 78 6 Explosive 20 | . 1 19 Electromagnetic 17 | . 17 . Robot Hit Streak 24 | 6 12 24 Robot Miss Streak 5 | 1 5 1 Penetration Max . | . . . Secondary Targets 1 | . 1 . Max Gunslinging Chain 1 | . 1 . Shots Hit Robots 137 | 10 101 26 Core Hits 76 | 4 57 15 Critical Kills 1 | . 1 . Critical Parts Destroyed . | . . . Critical Strikes 4 | . 4 . Burn 3 | . 3 . Destroy 1 | . 1 . Melee Attacks 5 | . 5 . Impact . | . . . Slashing 5 | . 5 . Piercing . | . . . Sneak Attacks 1 | . 1 . Combat Hostiles . | . . . Follow-up Attacks . | . . . Damage Inflicted 3125 | 108 1687 1330 Guns 1535 | 108 1335 92 Cannons 99 | . . 99 Explosions 1377 | . 238 1139 Melee 46 | . 46 . Ramming 68 | . 68 . Kinetic 763 | . 442 321 Thermal 949 | 108 749 92 Explosive 1109 | . 192 917 Electromagnetic 190 | . 190 . Impact . | . . . Slashing 46 | . 46 . Piercing . | . . . Highest Corruption . | . . . Average Corruption . | . . . Corruption Purged . | . . . Corruption Blocked . | . . . Overload Shots . | . . . Overflow Damage 37 | . 10 27 Projectiles . | . . . Explosions 37 | . 10 27 Melee . | . . . Knockbacks 2 | . . 2 Impact . | . . . Kinetic 2 | . . 2 Secondary . | . . . Self-Inflicted Damage 185 | . 37 148 Shots 5 | . 1 4 Rammed 8 | . 8 . Targets Rammed 15 | . 15 . Kicked 7 | . 7 . Crushed . | . . . Highest Temperature 350 | 72 350 . Average Temperature 72 | 30 76 . Received Heat Transfer 411 | . 339 72 Effects 1 | . 1 . Shutdowns 1 | . 1 . Siege Activations . | . . . Martial Activations . | . . . Shielding Activations . | . . . Robots Disrupted . | . . . Combat Hostiles . | . . . Robots Corrupted . | . . . Combat Hostiles . | . . . Parts Fried . | . . . Impact Corruptions . | . . . Robots Melted . | . . . Combat Hostiles . | . . . Parts Melted . | . . . Heat Transferred 2452 | 250 1980 222 Parts Sabotaged . | . . . Parts Stolen . | . . . Parts Stripped . | . . . Power Chain Reactions 2 | . 2 . Alert | -11 -10 -10 ------- Run | Yrd Mat Sub Maximum Alert Level 1 | . 1 . Low Security (%) 95 | 100 94 . Level 1 4 | . 5 . Level 2 . | . . . Level 3 . | . . . Level 4 . | . . . Level 5 . | . . . High Security . | . . . Max Security . | . . . Peak Influence 227 | 5 227 . Initial . | . . . Average 71 | . 74 . Influence Increases 722 | 15 707 . Destroy 0b10 Robot/C 420 | . 420 . Destroy 0b10 Robot/NC 80 | 15 65 . Destroy Leader 90 | . 90 . Successful Hack 18 | . 18 . Select Force Hacks 60 | . 60 . Disable Machine 15 | . 15 . Destroy Structure 24 | . 24 . Lose Combat Pursuer 15 | . 15 . Influence Decreases 722 | 15 674 33 Entered New Map 17 | . . 17 Time Decay 685 | 15 654 16 Lost Part 20 | . 20 . Squads Dispatched 4 | . 4 . Investigation 3 | . 3 . Extermination . | . . . Reinforcement 1 | . 1 . Assault . | . . . Garrison . | . . . Intercept . | . . . Searches Triggered . | . . . Construction Impeded . | . . . Haulers Reinforced . | . . . Active Scanning Responses . | . . . Cargo Convoy Interrupts . | . . . Stealth | -11 -10 -10 --------- Run | Yrd Mat Sub Distress Signals 2 | . 2 . Communications Jammed . | . . . Distress Signals . | . . . Times Spotted 44 | . 35 9 Peak Tracking Total 5 | . 5 3 Tactical Retreats 1 | . 1 . Traps | -11 -10 -10 ------- Run | Yrd Mat Sub Traps Triggered 2 | . 1 1 Indirectly . | . . . Trap Hack Attempts . | . . . Triggered . | . . . Disarmed . | . . . Reprogrammed . | . . . Reused . | . . . Traps Extracted . | . . . Installed . | . . . Triggered . | . . . Machines | -11 -10 -10 ---------- Run | Yrd Mat Sub Machines Disabled 4 | . 1 3 Max in Single Turn 3 | . 1 3 Machines Repaired . | . . . Machines Dismantled . | . . . Machines Sabotaged . | . . . Overloaded Fab Kills . | . . . Hacking | -11 -10 -10 --------- Run | Yrd Mat Sub Machines Accessed 10 | . 10 . Terminals 7 | . 7 . Fabricators . | . . . Repair Stations 1 | . 1 . Recycling Units 2 | . 2 . Scanalyzers . | . . . Garrison Access . | . . . Total Hacks 31 | . 31 . Successful 17 | . 17 . Failed 13 | . 13 . Catastrophic . | . . . Database Lockouts 1 | . 1 . Manual 17 | . 17 . Terminals 24 | . 24 . Fabricators . | . . . Repair Stations 4 | . 4 . Recycling Units 3 | . 3 . Scanalyzers . | . . . Garrison Access . | . . . Terminal Hacks 4 | . 4 . Robot Analysis 3 | . 3 . Hauler Manifests 1 | . 1 . Fabricator Hacks . | . . . Repair Station Hacks 4 | . 4 . Scan Component 2 | . 2 . Repair 2 | . 2 . Recycling Unit Hacks . | . . . Scanalyzer . | . . . Garrison Access Hacks . | . . . Unauthorized Hacks 9 | . 9 . Terminals 7 | . 7 . Botnet 2 | . 2 . Skim 5 | . 5 . Fabricators . | . . . Repair Stations . | . . . Recycling Units 2 | . 2 . Tunnel 2 | . 2 . Scanalyzers . | . . . Garrison Access . | . . . Data Cores Recovered . | . . . Used . | . . . Hacking Detections 7 | . 7 . Full Trace Events . | . . . Feedback Events . | . . . Feedback Blocked . | . . . Robot Schematics Acquired . | . . . Robots Built . | . . . Authchips . | . . . Time . | . . . Total Robot Build Rating . | . . . Part Schematics Acquired . | . . . Parts Built . | . . . Authchips . | . . . Time . | . . . Total Part Build Rating . | . . . Part Studies Acquired . | . . . Parts Repaired 2 | . 2 . Time 52 | . 52 . Parts Recycled . | . . . Recycled Matter . | . . . Retrieved Matter . | . . . Retrieved Components . | . . . Parts Scanalyzed . | . . . Part Schematics Acquired . | . . . Parts Damaged . | . . . Bothacking | -11 -10 -10 ------------ Run | Yrd Mat Sub Used RIF Installer . | . . . Robots Hacked . | . . . Non-combat . | . . . Combat . | . . . Robot Hacks Applied . | . . . Relay Couplers Released . | . . . Fabnet Peak Effective % . | . . . Robots Rewired . | . . . Allies Hacked . | . . . Hacks Repelled . | . . . Allies | -11 -10 -10 -------- Run | Yrd Mat Sub Total Allies . | . . . Largest Group . | . . . Highest-Rated Group . | . . . Highest-Rated Ally . | . . . Total Orders . | . . . Ally Attacks . | . . . Total Damage . | . . . Kills . | . . . Allies Corrupted . | . . . Allies Melted . | . . . Intel | -11 -10 -10 ------- Run | Yrd Mat Sub Active Infowar (turns) 4328 | 40 3361 927 Seismic 4328 | 40 3361 927 Robot Analysis Total 3 | . 3 . Derelict Logs Recovered 1 | . . 1 Drone Launches . | . . . Drone Recoveries . | . . . Exploration | -11 -10 -10 ------------- Run | Yrd Mat Sub Turns Passed 4965 | 167 3736 1062 Spaces Moved 1538 | 84 1259 195 Core 3 | 3 . . Treads 931 | 81 655 195 Legs 603 | . 603 . Wheels 1 | . 1 . Hover . | . . . Flight . | . . . Fastest Speed 50 | 50 115 320 Average Speed 246 | 156 240 320 Slowest Speed 320 | 160 320 320 Overloaded Moves . | . . . Propulsion Burnouts . | . . . Robots Hopped . | . . . Potential Cave-ins . | . . . Cave-ins Triggered . | . . . Exploration Rate (%) 39 | 5 100 13 Regions Visited 2 Branch Regions 1 Pre-discovered Areas 4 | . 3 1 Known Exits Taken 1 | . 1 . Unknown Exits Taken 1 | 1 . . Scrap Searched 9 | . . 9 Spaces Dug 1 | . 1 . Terrain Destroyed 108 | . 23 85 Melee 1 | . 1 . Projectile . | . . . AOE 107 | . 22 85 Terrain Rammed . | . . . Walls Destroyed . | . . . Machines Disabled . | . . . Actions | -11 -10 -10 --------- Run | Yrd Mat Sub Total 2469 | 102 1783 584 Wait 655 | 1 325 329 Move 1536 | 83 1258 195 Hop . | . . . Pick Up 45 | 4 34 7 Fast Attach 13 | 7 6 . Attach 4 | . 3 1 Detach 5 | . 5 . Swap 39 | . 22 17 Drop 27 | . 19 8 Fire 125 | 7 91 27 Melee 5 | . 5 . Ram . | . . . Kick 7 | . 7 . Crush 8 | . 8 . Escape Stasis . | . . . Rewire . | . . . Trap . | . . . Miscellaneous . | . . . Route ------- -11/Scrapyard -10/Materials (discovered 5 exits: *Mat x3 / [*Min] / *Sub) -10/Subcaves (discovered 3 exits: Mat x2 / Rec) History --------- Turn | Location | Event 17 | -11/Scrapyard | Discovered new exit (range 13) 168 | -11/Scrapyard | Entered Materials 306 | -10/Materials | Build established: Mutant 554 | -10/Materials | Discovered new exit (range 15) 701 | -10/Materials | Central database locked down 864 | -10/Materials | Build established: Scavenger-Mutant 1201 | -10/Materials | Core integrity fell below 50% 1345 | -10/Materials | Repaired Lgt. Treads 1372 | -10/Materials | Repaired Lgt. Treads 1472 | -10/Materials | Discovered new exit (range 11) 1660 | -10/Materials | Discovered new exit (range 16) 1795 | -10/Materials | Discovered new exit (range 16) 1956 | -10/Materials | Identified exit to Subcaves 1995 | -10/Materials | Learned 4 Subcaves zone layouts 2026 | -10/Materials | Learned location of 1 exit from Recycling 2048 | -10/Materials | Learned Storage security intel 2059 | -10/Materials | Identified exit to Materials 2060 | -10/Materials | Learned 4 Subcaves zone layouts 2084 | -10/Materials | Learned location of 2 exits from Subcaves 3904 | -10/Materials | Entered Subcaves 3905 | -10/Subcaves | Approached by a straggling Scientist 3905 | -10/Subcaves | Identified exit to Recycling 3905 | -10/Subcaves | Identified exit to Materials 3955 | -10/Subcaves | A swath of the cavern ceiling suddenly collapsed 4236 | -10/Subcaves | Learned location of Storage (-8) 4952 | -10/Subcaves | Visited 4L-MR0's lab 4957 | -10/Subcaves | Core integrity fell below 20% 4966 | -10/Subcaves | Destroyed self with Subdweller Shrapnel Launcher Last Messages --------------- 04609_ The unstable cave ceiling collapses. 04611_ E8-FUY(R) destroyed. 04615_ The unstable cave ceiling collapses. 04809_ Searching scrap... 04809_ Found Sub. Machine Gun. 04809_ Found 39 Matter. 04810_ Acquired 39 matter. 04828_ Dropped Hvy. EM Pulse Gun. 04831_ Acquired Sub. Machine Gun. 04886_ Dropped Med. Matter Pod. 04887_ Extracted 100 matter. 04889_ Acquired Med. Matter Pod. 04954_ Testing Chamber breached. 04954_ 0L-DFO(R) destroyed. 04963_ KB-WK9(R) destroyed. 04963_ Lgt. Armor Plating destroyed. 04963_ Destroyed Lgt. Armor Plating. 04966_ O6-N2X(R) destroyed. 04966_ Lgt. Treads destroyed. 04966_ Destroyed Lgt. Treads. Map ----- +----------------------------------------------------+ | | | | | | | | | | | | | | | | | | | | | | | | | | | | | | | | | | | | | ?????????????????????????????????????????????????? | | ?????????????????????????????????????????????????? | | ?????????????????????????????????????????????????? | | ?????????????######??????????????????????????????? | | ?????????????# "#""""????????????????????????????? | | ?????????????#] X" ????##?????????????????????? | | ?????????????### &&### #?????????????????????? | | ????????????#### & @ #?????????????????????? | | ????????????#"########## #????????????????????? | | ????????????# ####???#### #???????????????????? | | ????????????#" ""#####" [ <###???????????????????? | | ????????????## # ^#?????????????????????? | | ?????????????#" ## ##?????????????????????? | | ?????????????#### ##" ##??????????????????????? | | ??????????#######" "#####???????????????????????? | | ##???????## ## " ### #?????????????????????? | | ###????## ##????????????????????? | | ##??## #????????????????????? | | #### ????????????????? | | ????????????????? | | ## ????????????????? | | # ##### #?? ?????????????????? | | # ##????####??? ?????????????????? | | ## #### ##????????????????????????????????? | | ### ##??# ##?????????????????????????????????? | | #?####???## #??????????????????????????????????? | | #?????????## #??????????????????????????????????? | | #??????????## #??????????????????????????????????? | | ???????????###??????????????????????????????????? | | ???????????????????????????????????????????????? | | # ??????????????????????????????????????????????? | | ?????????????????????????????????????????????????? | +----------------------------------------------------+ Best States ------------- Heat Dissipation 35 Energy Generation 10 Energy Capacity 250 Matter Stores 300 Matter Capacity 300 Sight Range 16 Terrain Scan Density 10 Armor Coverage 150 Evasion (%) 40 Recoil Reduction 2 Item Schematics ----------------- None Robot Schematics ------------------ None Fabricated ------------ Nothing Repaired ---------- Lgt. Treads | 64% | -10/Materials Lgt. Treads | 74% | -10/Materials Studied --------- None Alien Tech Used ----------------- None Achievements -------------- None Challenges ------------ None Game ------ Seed TripodDirectedActivator Manual? 0 Play Time 00:36:02 Cumulative 875.4 hours Start 2025.10.24 @ 19:23:40 End 2025.10.24 @ 23:10:07 Sessions 3 Manual Loads 0 Difficulty Rogue Special Mode None Game No. 104 Rogue 86 Adventurer 5 Explorer 13 Win Type - Total 38 Types 7/9/10/0/5/1/4/0/1/1 Lore% 85 Gallery% 92 Achievement% 59 Wizard Run 0 Options --------- Layout 0 ASCII 0 Keyboard 0 Movement Numpad Keybinds 0 Fullscreen 1 Font 24/Smallcaps Map View 130x56 Zoom Use 0% Tactical HUD 1 Map Filters NONE Filters NONE Steam 1 RUN: 4016af49-7d7c-4c46-bff5-9214dde22985